[Event "Anderssen Festival 2019"]
[Site "Wroclaw"]
[Date "2019.08.06"]
[Round "3.1"]
[White "Snihur, Piotr"]
[Black "Gutenev, Alexander"]
[Result "1/2-1/2"]
[ECO "D70"]
[WhiteElo "2256"]
[BlackElo "2470"]
[Annotator "ChessBase"]
[PlyCount "195"]
[EventDate "2019.08.05"]
[EventType "swiss"]
[EventCountry "POL"]
[SourceTitle "playchess.com"]
[Source "ChessBase"]
[SourceQuality "1"]
[TimeControl "40/5400+30:900+30"]

1. d4 {[%emt 0:00:00]} Nf6 {[%emt 0:00:00]} 2. c4 {[%emt 0:00:00]} g6 {[%emt 0:00:00]} 3. f3 {[%emt 0:00:05]} d5 {[%emt 0:00:00]} 4. cxd5 {[%emt 0:00:33]} Nxd5 {[%emt 0:00:00]} 5. e4 {[%emt 0:00:22]} Nb6 {[%emt 0:00:00]} 6. Nc3 {[%emt 0:01:09]} Bg7 {[%emt 0:00:06]} 7. Be3 {[%emt 0:00:24]} O-O {[%emt 0:00:08]} 8. Qd2 {[%emt 0:00:33]} e5 {[%emt 0:00:52]} 9. O-O-O {[%emt 0:04:20]} exd4 {[%emt 0:00:28]} 10. Bxd4 {[%emt 0:00:11]} Bxd4 {[%emt 0:00:15]} 11. Qxd4 {[%emt 0:00:07]} Qxd4 {[%emt 0:00:05]} 12. Rxd4 {[%emt 0:00:15]} Nc6 {[%emt 0:00:06]} 13. Rd1 {[%emt 0:01:14]} Be6 {[%emt 0:00:06]} 14. Nge2 {[%emt 0:07:14]} Rfd8 {[%emt 0:00:08]} 15. Rxd8+ {[%emt 0:00:44]} Rxd8 {[%emt 0:00:08]} 16. Nf4 {[%emt 0:00:14]} a6 {[%emt 0:00:19]} 17. Be2 {[%emt 0:01:42]} Nd4 {[%emt 0:00:17]} 18. Rd1 {[%emt 0:04:17]} c5 {[%emt 0:04:39]} 19. Nxe6 {[%emt 0:07:18]} fxe6 {[%emt 0:00:11]} 20. f4 {[%emt 0:00:25]} Kf7 {[%emt 0:01:05]} 21. Bg4 {[%emt 0:03:43]} Nc4 {[%emt 0:05:17]} 22. Re1 {[%emt 0:02:00]} Ke7 {[%emt 0:01:16]} 23. b3 {[%emt 0:05:29]} Na3 {[%emt 0:00:36]} 24. Kb2 {[%emt 0:04:39]} Nac2 {[%emt 0:00:18]} 25. Rc1 {[%emt 0:03:51]} Ne3 {[%emt 0:01:35]} 26. Bh3 {[%emt 0:01:32]} Nc6 {[%emt 0:01:21]} 27. Na4 {[%emt 0:01:33]} c4 {[%emt 0:06:23]} 28. Nc5 {[%emt 0:10:30]} Rd2+ {[%emt 0:02:28]} 29. Kc3 {[%emt 0:04:57]} Rxa2 {[%emt 0:00:10]} 30. Nxb7 {[%emt 0:00:20]} Nxg2 {[%emt 0:04:03]} 31. Bxg2 {[%emt 0:01:11]} Rxg2 {[%emt 0:00:04]} 32. Kxc4 {[%emt 0:00:20]} Rxh2 {[%emt 0:00:37]} 33. Kc5 {[%emt 0:02:03]} Nb8 {[%emt 0:01:08]} 34. Kb6 {[%emt 0:04:30]} Nd7+ {[%emt 0:04:54]} 35. Kxa6 {[%emt 0:01:35]} e5 {[%emt 0:00:05]} 36. fxe5 {[%emt 0:04:55]} Nxe5 {[%emt 0:00:59]} 37. b4 {[%emt 0:01:30]} g5 {[%emt 0:02:36]} 38. b5 {[%emt 0:11:35]} g4 {[%emt 0:00:04]} 39. Na5 {[%emt 0:02:54]} g3 {[%emt 0:01:07]} 40. Rg1 {[%emt 0:00:00]} Ra2 {[%emt 0:00:00]} 41. Rxg3 {[%emt 0:02:06]} Nc4 {[%emt 0:03:18]} 42. Rg7+ {[%emt 0:04:14]} Ke6 {[%emt 0:00:05]} 43. Rxh7 {[%emt 0:00:34]} Rxa5+ {[%emt 0:00:05]} 44. Kb7 {[%emt 0:00:13]} Rxb5+ {[%emt 0:00:03]} 45. Kc6 {[%emt 0:00:18]} Rg5 {[%emt 0:00:11]} 46. Ra7 {[%emt 0:01:43]} Nd2 {[%emt 0:01:00]} 47. Ra8 {[%emt 0:00:20]} Ke7 {[%emt 0:00:58]} 48. Ra7+ {[%emt 0:01:34]} Kf6 {[%emt 0:00:05]} 49. Ra4 {[%emt 0:01:33]} Re5 {[%emt 0:00:18]} 50. Rd4 {[%emt 0:02:40]} Nxe4 {[%emt 0:00:08]} 51. Rd3 {[%emt 0:00:36]} Ke6 {[%emt 0:00:09]} 52. Rd4 {[%emt 0:00:15]} Nf6 {[%emt 0:01:00]} 53. Rd6+ {[%emt 0:00:33]} Kf5 {[%emt 0:00:13]} 54. Rd1 {[%emt 0:00:21]} Re2 {[%emt 0:00:03]} 55. Kc5 {[%emt 0:02:19]} Re8 {[%emt 0:00:09]} 56. Rf1+ {[%emt 0:01:42]} Ke5 {[%emt 0:00:05]} 57. Re1+ {[%emt 0:00:06]} Ne4+ {[%emt 0:00:04]} 58. Kc4 {[%emt 0:00:33]} Rc8+ {[%emt 0:00:04]} 59. Kb5 {[%emt 0:00:09]} Rc2 {[%emt 0:00:39]} 60. Kb4 {[%emt 0:00:50]} Kd4 {[%emt 0:00:41]} 61. Rd1+ {[%emt 0:00:23]} Nd2 {[%emt 0:00:06]} 62. Kb5 {[%emt 0:00:30]} Kd3 {[%emt 0:00:11]} 63. Kb6 {[%emt 0:00:30]} Ke4 {[%emt 0:01:32]} 64. Rh1 {[%emt 0:00:47]} Nf3 {[%emt 0:00:15]} 65. Rh8 {[%emt 0:00:35]} Ne5 {[%emt 0:00:12]} 66. Rd8 {[%emt 0:00:45]} Rc1 {[%emt 0:00:20]} 67. Kb5 {[%emt 0:00:51]} Nc6 {[%emt 0:00:13]} 68. Rh8 {[%emt 0:01:03]} Nd4+ {[%emt 0:00:11]} 69. Kb4 {[%emt 0:00:23]} Nf5 {[%emt 0:00:40]} 70. Rd8 {[%emt 0:00:43]} Rc7 {[%emt 0:00:27]} 71. Re8+ {[%emt 0:01:55]} Ne7 {[%emt 0:00:08]} 72. Kb5 {[%emt 0:00:26]} Kd4 {[%emt 0:00:06]} 73. Rd8+ {[%emt 0:01:42]} Nd5 {[%emt 0:00:05]} 74. Rh8 {[%emt 0:00:40]} Rc5+ {[%emt 0:00:07]} 75. Ka6 {[%emt 0:00:42]} Nf6 {[%emt 0:01:23]} 76. Rh4+ {[%emt 0:01:07]} Kd5 {[%emt 0:00:06]} 77. Rh6 {[%emt 0:00:34]} Nd7 {[%emt 0:00:25]} 78. Rh5+ {[%emt 0:00:12]} Ne5 {[%emt 0:00:05]} 79. Kb6 {[%emt 0:00:25]} Rc1 {[%emt 0:00:07]} 80. Rh2 {[%emt 0:00:31]} Nd7+ {[%emt 0:00:19]} 81. Kb7 {[%emt 0:00:35]} Nf6 {[%emt 0:00:06]} 82. Rh6 {[%emt 0:02:43]} Rc6 {[%emt 0:00:36]} 83. Rh1 {[%emt 0:00:13]} Kd6 {[%emt 0:00:11]} 84. Rh6 {[%emt 0:00:45]} Kd7 {[%emt 0:00:06]} 85. Rg6 {[%emt 0:00:23]} Rd6 {[%emt 0:00:17]} 86. Rh6 {[%emt 0:01:06]} Ke7 {[%emt 0:01:24]} 87. Rg6 {[%emt 0:00:25]} Re6 {[%emt 0:00:39]} 88. Rh6 {[%emt 0:00:47]} Kd6 {[%emt 0:00:04]} 89. Rg6 {[%emt 0:00:33]} Kc5 {[%emt 0:00:04]} 90. Rg1 {[%emt 0:00:51]} Re7+ {[%emt 0:00:08]} 91. Ka6 {[%emt 0:00:22]} Re6+ {[%emt 0:01:29]} 92. Kb7 {[%emt 0:00:50]} Rb6+ {[%emt 0:00:07]} 93. Kc7 {[%emt 0:00:39]} Nd5+ {[%emt 0:00:09]} 94. Kd7 {[%emt 0:00:20]} Rd6+ {[%emt 0:00:02]} 95. Ke8 {[%emt 0:00:24]} Rf6 {[%emt 0:00:03]} 96. Ra1 {[%emt 0:00:57]} Kd6 {[%emt 0:00:13]} 97. Ra6+ {[%emt 0:00:17]} Kc7 {[%emt 0:00:06]} 98. Rxf6 {[%emt 0:00:05]} 1/2-1/2

[Event "Anderssen Festival 2019"]
[Site "Wroclaw"]
[Date "2019.08.06"]
[Round "3.2"]
[White "Chernyshov, Konstantin"]
[Black "Nowak, Mikolaj"]
[Result "1-0"]
[ECO "E00"]
[WhiteElo "2446"]
[BlackElo "2230"]
[Annotator "NA"]
[PlyCount "69"]
[EventDate "2019.08.05"]
[EventType "swiss"]
[EventCountry "POL"]
[SourceTitle "playchess.com"]
[Source "ChessBase"]
[SourceQuality "1"]
[TimeControl "40/5400+30:900+30"]

1. d4 {[%emt 0:00:00]} e6 {[%emt 0:00:00]} 2. c4 {[%emt 0:00:00]} Bb4+ {[%emt 0:00:00]} 3. Bd2 {[%emt 0:00:06]} Qe7 {[%emt 0:00:00]} 4. e4 {[%emt 0:03:44]} b6 {[%emt 0:04:03]} 5. Bd3 {[%emt 0:02:45]} Bb7 {[%emt 0:02:24]} 6. a3 {[%emt 0:00:34]} Bxd2+ {[%emt 0:00:16]} 7. Nxd2 {[%emt 0:00:06]} d6 {[%emt 0:00:50]} 8. Ngf3 {[%emt 0:03:19]} e5 {[%emt 0:04:33]} 9. O-O {[%emt 0:02:27]} Nf6 {[%emt 0:03:13]} 10. c5 {[%emt 0:03:08]} dxc5 {[%emt 0:02:51]} 11. dxc5 {[%emt 0:01:54]} Qxc5 {[%emt 0:00:59]} 12. Rc1 {[%emt 0:11:46]} Qe7 {[%emt 0:02:02]} 13. Nc4 {[%emt 0:00:05]} Nbd7 {[%emt 0:15:07]} 14. Ne3 {[%emt 0:02:31]} O-O-O {[%emt 0:01:11]} 15. Nf5 {[%emt 0:13:12]} Qf8 {[%emt 0:01:05]} 16. Qc2 {[%emt 0:00:11]} c5 {[%emt 0:01:33]} 17. a4 {[%emt 0:00:09]} Ne8 {[%emt 0:14:22]} 18. a5 {[%emt 0:05:37]} g6 {[%emt 0:06:45]} 19. Ne3 {[%emt 0:00:25]} Nd6 {[%emt 0:01:26]} 20. axb6 {[%emt 0:01:09]} axb6 {[%emt 0:00:11]} 21. b4 {[%emt 0:00:17]} Qe7 {[%emt 0:09:10]} 22. Nd2 {[%emt 0:00:53]} f5 {[%emt 0:04:42]} 23. Nec4 {[%emt 0:03:18]} Nxc4 {[%emt 0:05:10]} 24. Nxc4 {[%emt 0:02:29]} Kb8 {[%emt 0:02:17]} 25. Rfe1 {[%emt 0:09:41]} f4 {[%emt 0:01:21]} 26. Na3 {[%emt 0:08:48]} f3 {[%emt 0:06:07]} 27. Nb5 {[%emt 0:03:15]} Bc6 {[%emt 0:01:12]} 28. Ra1 {[%emt 0:06:45]} Nf6 {[%emt 0:01:17]} 29. Ra6 {[%emt 0:00:23]} Qb7 {[%emt 0:01:23]} 30. Ra7 {[%emt 0:02:22]} Qc8 {[%emt 0:00:47]} 31. Qa4 {[%emt 0:01:35]} Rd7 {[%emt 0:03:40]} 32. Ra1 {[%emt 0:00:17]} Bxb5 {[%emt 0:01:37]} 33. Bxb5 {[%emt 0:01:14]} Rhd8 {[%emt 0:00:26]} 34. Ra8+ {[%emt 0:01:20]} Kb7 {[%emt 0:00:14]} 35. Qa7# {[%emt 0:00:09]} 1-0

[Event "Anderssen Festival 2019"]
[Site "Wroclaw"]
[Date "2019.08.06"]
[Round "3.3"]
[White "Kareva, Natalia"]
[Black "Butkiewicz, Lukasz"]
[Result "1/2-1/2"]
[ECO "E01"]
[WhiteElo "2135"]
[BlackElo "2425"]
[Annotator "NA"]
[PlyCount "93"]
[EventDate "2019.08.05"]
[EventType "swiss"]
[EventCountry "POL"]
[SourceTitle "playchess.com"]
[Source "ChessBase"]
[SourceQuality "1"]
[TimeControl "40/5400+30:900+30"]

1. d4 {[%emt 0:00:00]} Nf6 {[%emt 0:00:00]} 2. c4 {[%emt 0:00:22]} e6 {[%emt 0:00:06]} 3. g3 {[%emt 0:00:50]} d5 {[%emt 0:02:29]} 4. Bg2 {[%emt 0:00:17]} dxc4 {[%emt 0:00:40]} 5. Qa4+ {[%emt 0:01:59]} Nbd7 {[%emt 0:02:04]} 6. Nf3 {[%emt 0:00:42]} a6 {[%emt 0:00:32]} 7. Ne5 {[%emt 0:04:27]} Be7 {[%emt 0:08:23]} 8. Nc3 {[%emt 0:04:44]} O-O {[%emt 0:01:08]} 9. Qxc4 {[%emt 0:02:23]} Nxe5 {[%emt 0:03:08]} 10. dxe5 {[%emt 0:00:07]} Nd7 {[%emt 0:00:06]} 11. f4 {[%emt 0:01:05]} Rb8 {[%emt 0:01:45]} 12. a4 {[%emt 0:02:17]} c5 {[%emt 0:10:00]} 13. Be3 {[%emt 0:01:24]} Qc7 {[%emt 0:05:14]} 14. O-O {[%emt 0:04:58]} b6 {[%emt 0:00:19]} 15. Rfd1 {[%emt 0:06:22]} Bb7 {[%emt 0:00:59]} 16. Be4 {[%emt 0:09:28]} Bxe4 {[%emt 0:07:40]} 17. Nxe4 {[%emt 0:00:34]} b5 {[%emt 0:01:02]} 18. axb5 {[%emt 0:01:30]} axb5 {[%emt 0:00:43]} 19. Qc2 {[%emt 0:00:14]} Rfc8 {[%emt 0:05:28]} 20. Nd6 {[%emt 0:04:05]} Bxd6 {[%emt 0:02:20]} 21. Rxd6 {[%emt 0:00:42]} Nf8 {[%emt 0:07:47]} 22. Qe4 {[%emt 0:04:28]} Qb7 {[%emt 0:03:28]} 23. Qc2 {[%emt 0:03:50]} b4 {[%emt 0:05:00]} 24. Qc4 {[%emt 0:04:37]} Ra8 {[%emt 0:03:56]} 25. Rad1 {[%emt 0:04:13]} h6 {[%emt 0:01:30]} 26. Kf2 {[%emt 0:02:33]} Rc7 {[%emt 0:03:29]} 27. Rd8 {[%emt 0:03:33]} Rcc8 {[%emt 0:00:58]} 28. R8d6 {[%emt 0:00:15]} Qc7 {[%emt 0:02:44]} 29. h4 {[%emt 0:02:02]} Ra7 {[%emt 0:00:44]} 30. h5 {[%emt 0:00:29]} Qa5 {[%emt 0:02:35]} 31. b3 {[%emt 0:03:36]} Rb7 {[%emt 0:01:03]} 32. g4 {[%emt 0:01:46]} Qb5 {[%emt 0:01:13]} 33. Qxb5 {[%emt 0:02:13]} Rxb5 {[%emt 0:00:04]} 34. Rd8 {[%emt 0:00:05]} Rbb8 {[%emt 0:00:20]} 35. Rxc8 {[%emt 0:00:18]} Rxc8 {[%emt 0:00:02]} 36. Rd6 {[%emt 0:00:09]} g6 {[%emt 0:02:45]} 37. Rb6 {[%emt 0:05:40]} gxh5 {[%emt 0:00:47]} 38. gxh5 {[%emt 0:00:05]} Rc7 {[%emt 0:00:16]} 39. Ke1 {[%emt 0:01:08]} Nd7 {[%emt 0:00:27]} 40. Rb5 {[%emt 0:00:00]} Ra7 {[%emt 0:00:00]} 41. Kd2 {[%emt 0:05:45]} Ra2+ {[%emt 0:02:38]} 42. Kd3 {[%emt 0:00:12]} Rb2 {[%emt 0:05:47]} 43. Rb7 {[%emt 0:02:12]} Rxb3+ {[%emt 0:00:07]} 44. Ke4 {[%emt 0:00:07]} f5+ {[%emt 0:02:02]} 45. Kf3 {[%emt 0:03:00]} Nf8 {[%emt 0:00:17]} 46. Kf2 {[%emt 0:00:48]} c4 {[%emt 0:06:11]} 47. Bc5 {[%emt 0:03:15]} 1/2-1/2

[Event "Anderssen Festival 2019"]
[Site "Wroclaw"]
[Date "2019.08.06"]
[Round "3.4"]
[White "Lalic, Bogdan"]
[Black "Zgadzaj, Rafal"]
[Result "1-0"]
[ECO "E91"]
[WhiteElo "2411"]
[BlackElo "2133"]
[Annotator "NA"]
[PlyCount "72"]
[EventDate "2019.08.05"]
[EventType "swiss"]
[EventCountry "POL"]
[SourceTitle "playchess.com"]
[Source "ChessBase"]
[SourceQuality "1"]
[TimeControl "40/5400+30:900+30"]

1. d4 {[%emt 0:07:57]} g6 {[%emt 0:00:00]} 2. c4 {[%emt 0:00:13]} Bg7 {[%emt 0:00:13]} 3. e4 {[%emt 0:00:10]} d6 {[%emt 0:00:30]} 4. Nc3 {[%emt 0:00:21]} Nf6 {[%emt 0:02:55]} 5. Nf3 {[%emt 0:00:37]} O-O {[%emt 0:00:21]} 6. Be2 {[%emt 0:00:05]} Nbd7 {[%emt 0:03:45]} 7. O-O {[%emt 0:00:19]} e5 {[%emt 0:00:09]} 8. Be3 {[%emt 0:01:09]} Ng4 {[%emt 0:05:24]} 9. Bg5 {[%emt 0:00:11]} f6 {[%emt 0:00:00]} 10. Bd2 {[%emt 0:02:19]} c6 {[%emt 0:05:00]} 11. d5 {[%emt 0:04:54]} Qe7 {[%emt 0:07:01]} 12. Ne1 {[%emt 0:08:14]} Nh6 {[%emt 0:02:39]} 13. Nd3 {[%emt 0:00:09]} f5 {[%emt 0:01:23]} 14. dxc6 {[%emt 0:06:07]} bxc6 {[%emt 0:00:04]} 15. c5 {[%emt 0:00:05]} dxc5 {[%emt 0:09:56]} 16. Qa4 {[%emt 0:00:09]} Rb8 {[%emt 0:01:17]} 17. Qxa7 {[%emt 0:09:49]} c4 {[%emt 0:03:33]} 18. Nc1 {[%emt 0:03:05]} Rxb2 {[%emt 0:01:37]} 19. Bxc4+ {[%emt 0:00:05]} Kh8 {[%emt 0:00:37]} 20. Nb3 {[%emt 0:03:26]} fxe4 {[%emt 0:23:12]} 21. Nxe4 {[%emt 0:08:23]} Qh4 {[%emt 0:03:23]} 22. f3 {[%emt 0:00:54]} Nf5 {[%emt 0:07:44]} 23. Qa3 {[%emt 0:09:56]} Rc2 {[%emt 0:01:49]} 24. Bd3 {[%emt 0:00:09]} Nd4 {[%emt 0:06:07]} 25. Bg5 {[%emt 0:10:36]} Qh5 {[%emt 0:01:52]} 26. Nxd4 {[%emt 0:00:08]} Rxg2+ {[%emt 0:03:19]} 27. Kxg2 {[%emt 0:00:05]} exd4 {[%emt 0:00:10]} 28. Be7 {[%emt 0:01:26]} Re8 {[%emt 0:04:42]} 29. Ng3 {[%emt 0:00:15]} Qd5 {[%emt 0:00:52]} 30. Rae1 {[%emt 0:03:01]} Ne5 {[%emt 0:01:54]} 31. Bd6 {[%emt 0:00:32]} Bd7 {[%emt 0:01:14]} 32. Bxe5 {[%emt 0:00:17]} Bxe5 {[%emt 0:00:05]} 33. Qb3 {[%emt 0:00:19]} Qd6 {[%emt 0:00:29]} 34. f4 {[%emt 0:03:45]} Bxf4 {[%emt 0:00:25]} 35. Rxe8+ {[%emt 0:00:59]} Bxe8 {[%emt 0:00:02]} 36. Qb7 {[%emt 0:01:10]} g5 {[%emt 0:03:24]} 1-0

[Event "Anderssen Festival 2019"]
[Site "Wroclaw"]
[Date "2019.08.06"]
[Round "3.5"]
[White "Verwoert, Jef"]
[Black "Lugovskoy, Maxim"]
[Result "0-1"]
[ECO "A06"]
[WhiteElo "2034"]
[BlackElo "2425"]
[Annotator "NA"]
[PlyCount "99"]
[EventDate "2019.08.05"]
[EventType "swiss"]
[EventCountry "POL"]
[SourceTitle "playchess.com"]
[Source "ChessBase"]
[SourceQuality "1"]
[TimeControl "40/5400+30:900+30"]

1. Nf3 {[%emt 0:03:28]} d5 {[%emt 0:00:00]} 2. g3 {[%emt 0:00:10]} Nf6 {[%emt 0:00:00]} 3. Bg2 {[%emt 0:00:10]} e6 {[%emt 0:00:00]} 4. c4 {[%emt 0:00:12]} d4 {[%emt 0:00:00]} 5. O-O {[%emt 0:00:43]} c5 {[%emt 0:00:00]} 6. d3 {[%emt 0:01:00]} Nc6 {[%emt 0:00:00]} 7. e3 {[%emt 0:03:45]} Bd6 {[%emt 0:00:42]} 8. exd4 {[%emt 0:03:58]} cxd4 {[%emt 0:00:03]} 9. Bg5 {[%emt 0:02:20]} O-O {[%emt 0:00:11]} 10. Nbd2 {[%emt 0:01:33]} e5 {[%emt 0:00:06]} 11. Ne4 {[%emt 0:03:12]} Be7 {[%emt 0:00:40]} 12. Nxf6+ {[%emt 0:02:29]} Bxf6 {[%emt 0:00:05]} 13. Bxf6 {[%emt 0:03:38]} Qxf6 {[%emt 0:00:02]} 14. Nd2 {[%emt 0:01:40]} Qg6 {[%emt 0:03:48]} 15. Be4 {[%emt 0:06:34]} Qh6 {[%emt 0:04:13]} 16. a3 {[%emt 0:10:47]} a5 {[%emt 0:00:47]} 17. Rb1 {[%emt 0:00:28]} Kh8 {[%emt 0:00:14]} 18. b4 {[%emt 0:01:09]} axb4 {[%emt 0:00:03]} 19. axb4 {[%emt 0:00:17]} Ra2 {[%emt 0:01:08]} 20. f4 {[%emt 0:30:24]} Bh3 {[%emt 0:03:50]} 21. b5 {[%emt 0:07:21]} Nd8 {[%emt 0:02:11]} 22. Rf2 {[%emt 0:03:08]} exf4 {[%emt 0:00:26]} 23. Rxf4 {[%emt 0:01:44]} Ne6 {[%emt 0:00:02]} 24. Rf2 {[%emt 0:00:35]} Ng5 {[%emt 0:00:04]} 25. Bxb7 {[%emt 0:01:38]} Bg4 {[%emt 0:01:59]} 26. Qxg4 {[%emt 0:03:55]} Nh3+ {[%emt 0:00:03]} 27. Qxh3 {[%emt 0:01:16]} Qxh3 {[%emt 0:00:06]} 28. Ne4 {[%emt 0:00:26]} Rxf2 {[%emt 0:01:03]} 29. Nxf2 {[%emt 0:00:02]} Qd7 {[%emt 0:03:26]} 30. Bg2 {[%emt 0:01:42]} Rb8 {[%emt 0:00:21]} 31. b6 {[%emt 0:00:40]} Qd6 {[%emt 0:02:31]} 32. b7 {[%emt 0:00:28]} Qa3 {[%emt 0:00:03]} 33. Bd5 {[%emt 0:00:33]} f5 {[%emt 0:00:12]} 34. Rb5 {[%emt 0:01:05]} g5 {[%emt 0:01:48]} 35. c5 {[%emt 0:00:14]} f4 {[%emt 0:00:54]} 36. c6 {[%emt 0:00:20]} Qc1+ {[%emt 0:00:21]} 37. Kg2 {[%emt 0:00:09]} Qc2 {[%emt 0:04:00]} 38. Ra5 {[%emt 0:03:23]} fxg3 {[%emt 0:01:20]} 39. hxg3 {[%emt 0:00:38]} Rf8 {[%emt 0:00:07]} 40. Bf3 {[%emt 0:00:00]} g4 {[%emt 0:00:00]} 41. Ra8 {[%emt 0:11:10]} gxf3+ {[%emt 0:04:21]} 42. Kh3 {[%emt 0:00:17]} Qc5 {[%emt 0:00:10]} 43. g4 {[%emt 0:00:57]} Qd6 {[%emt 0:01:25]} 44. c7 {[%emt 0:03:15]} Qh6+ {[%emt 0:02:49]} 45. Kg3 {[%emt 0:00:07]} Qf4+ {[%emt 0:00:20]} 46. Kh3 {[%emt 0:00:23]} Qh6+ {[%emt 0:01:22]} 47. Kg3 {[%emt 0:00:07]} Qd6+ {[%emt 0:00:21]} 48. Kh3 {[%emt 0:00:07]} Qh6+ {[%emt 0:02:40]} 49. Kg3 {[%emt 0:00:07]} Qd6+ {[%emt 0:00:05]} 50. Kh3 0-1

[Event "Anderssen Festival 2019"]
[Site "Wroclaw"]
[Date "2019.08.06"]
[Round "3.6"]
[White "Dytman, Radoslaw"]
[Black "Naumkin, Igor"]
[Result "0-1"]
[ECO "A05"]
[WhiteElo "1745"]
[BlackElo "2368"]
[Annotator "NA"]
[PlyCount "60"]
[EventDate "2019.08.05"]
[EventType "swiss"]
[EventCountry "POL"]
[SourceTitle "playchess.com"]
[Source "ChessBase"]
[SourceQuality "1"]
[TimeControl "40/5400+30:900+30"]

1. Nf3 Nf6 2. g3 d5 3. Bg2 c5 4. d3 Nc6 5. Nbd2 e5 6. O-O Be7 7. c3 O-O 8. Qc2 h6 9. e4 d4 10. c4 Ne8 11. a3 a5 12. Ne1 Ra6 13. f4 exf4 14. gxf4 f5 15. Ndf3 Nd6 16. Bd2 Be6 17. Rf2 fxe4 18. dxe4 Nxc4 19. Bf1 Ne3 20. Bxe3 dxe3 21. Rg2 Rxf4 22. Bxa6 bxa6 23. Qc3 Qf8 24. Qxe3 c4 25. Kh1 Bc5 26. Qc3 Rxe4 27. Rd1 Re3 28. Qc2 Ne5 29. Nxe5 Rxe5 30. Qg6 Bd5 0-1

[Event "Anderssen Festival 2019"]
[Site "Wroclaw"]
[Date "2019.08.06"]
[Round "3.7"]
[White "Skliarov, Viktor"]
[Black "Luberanski, Jakub"]
[Result "1/2-1/2"]
[ECO "B83"]
[WhiteElo "2360"]
[BlackElo "2010"]
[Annotator "NA"]
[PlyCount "72"]
[EventDate "2019.08.05"]
[EventType "swiss"]
[EventCountry "POL"]
[SourceTitle "playchess.com"]
[Source "ChessBase"]
[SourceQuality "1"]
[TimeControl "40/5400+30:900+30"]

1. e4 {[%emt 0:00:00]} c5 {[%emt 0:00:00]} 2. Nf3 {[%emt 0:00:00]} e6 {[%emt 0:00:00]} 3. d4 {[%emt 0:00:00]} cxd4 {[%emt 0:00:00]} 4. Nxd4 {[%emt 0:00:00]} Nf6 {[%emt 0:00:00]} 5. Nc3 {[%emt 0:00:11]} d6 {[%emt 0:00:00]} 6. Be2 {[%emt 0:00:26]} Be7 {[%emt 0:00:00]} 7. O-O {[%emt 0:00:23]} O-O {[%emt 0:00:00]} 8. Be3 {[%emt 0:00:27]} Nc6 {[%emt 0:00:01]} 9. Kh1 {[%emt 0:00:42]} Bd7 {[%emt 0:01:05]} 10. f4 {[%emt 0:00:11]} a6 {[%emt 0:00:10]} 11. Qe1 {[%emt 0:00:12]} b5 {[%emt 0:00:21]} 12. a3 {[%emt 0:00:18]} Qb8 {[%emt 0:01:20]} 13. Bf3 {[%emt 0:03:55]} Nxd4 {[%emt 0:08:15]} 14. Bxd4 {[%emt 0:00:12]} e5 {[%emt 0:00:05]} 15. Nd5 {[%emt 0:13:47]} Nxd5 {[%emt 0:02:16]} 16. exd5 {[%emt 0:00:05]} exd4 {[%emt 0:12:23]} 17. Qxe7 {[%emt 0:00:06]} Bf5 {[%emt 0:00:24]} 18. Rac1 {[%emt 0:15:22]} Re8 {[%emt 0:06:45]} 19. Qg5 {[%emt 0:00:11]} Be4 {[%emt 0:01:05]} 20. f5 {[%emt 0:18:15]} Qd8 {[%emt 0:17:55]} 21. Qxd8 {[%emt 0:12:27]} Raxd8 {[%emt 0:00:22]} 22. Rfd1 {[%emt 0:00:11]} Bxf5 {[%emt 0:04:29]} 23. Rxd4 {[%emt 0:03:44]} Bxc2 {[%emt 0:00:54]} 24. h3 {[%emt 0:00:20]} Bf5 {[%emt 0:13:07]} 25. Rc6 {[%emt 0:01:42]} Bc8 {[%emt 0:05:03]} 26. Rb6 {[%emt 0:01:47]} Re1+ {[%emt 0:03:27]} 27. Kh2 {[%emt 0:00:06]} Kf8 {[%emt 0:02:45]} 28. Rd2 {[%emt 0:06:43]} Rc1 {[%emt 0:02:04]} 29. Re2 {[%emt 0:03:32]} Rc7 {[%emt 0:02:43]} 30. Rb8 {[%emt 0:00:42]} f5 {[%emt 0:01:22]} 31. g4 {[%emt 0:05:00]} Re8 {[%emt 0:05:33]} 32. Rxe8+ {[%emt 0:01:18]} Kxe8 {[%emt 0:00:01]} 33. gxf5 {[%emt 0:00:08]} Ke7 {[%emt 0:00:16]} 34. Bg4 {[%emt 0:02:58]} Kf6 {[%emt 0:00:41]} 35. Rb6 {[%emt 0:00:07]} Bxf5 {[%emt 0:04:32]} 36. Rxd6+ {[%emt 0:01:47]} Ke5 1/2-1/2

[Event "Anderssen Festival 2019"]
[Site "Wroclaw"]
[Date "2019.08.06"]
[Round "3.9"]
[White "Eggink, Ryszard"]
[Black "Krawiec, Grzegorz"]
[Result "1-0"]
[ECO "B40"]
[WhiteElo "2377"]
[BlackElo "1816"]
[Annotator "NA"]
[PlyCount "45"]
[EventDate "2019.08.05"]
[EventType "swiss"]
[EventCountry "POL"]
[SourceTitle "playchess.com"]
[Source "ChessBase"]
[SourceQuality "1"]
[TimeControl "40/5400+30:900+30"]

1. e4 c5 2. Nf3 e6 3. Nc3 Nc6 4. Bb5 Qc7 5. O-O Nf6 6. Bxc6 Qxc6 7. e5 Nd5 8. Ne4 d6 9. d4 cxd4 10. Nxd4 Qb6 11. exd6 Bxd6 12. c4 Ne7 13. Be3 Qd8 14. Nb5 Bc7 15. Qg4 Be5 16. Rad1 Qa5 17. b4 f5 18. Ned6+ Kf8 19. Qh5 g6 20. Qh6+ Bg7 21. bxa5 Bxh6 22. Bxh6+ Kg8 23. Nc7 1-0

[Event "Anderssen Festival 2019"]
[Site "Wroclaw"]
[Date "2019.08.06"]
[Round "3.11"]
[White "Krawiecki, Stanislaw"]
[Black "Wieczorek, Zbigniew"]
[Result "1/2-1/2"]
[ECO "A40"]
[WhiteElo "1923"]
[BlackElo "2235"]
[Annotator "NA"]
[PlyCount "36"]
[EventDate "2019.08.05"]
[EventType "swiss"]
[EventCountry "POL"]
[SourceTitle "playchess.com"]
[Source "ChessBase"]
[SourceQuality "1"]
[TimeControl "40/5400+30:900+30"]

1. d4 {[%emt 0:00:00]} g6 {[%emt 0:19:18]} 2. Bg5 {[%emt 0:00:27]} Bg7 {[%emt 0:00:22]} 3. e3 {[%emt 0:00:15]} c5 {[%emt 0:02:56]} 4. c3 {[%emt 0:00:10]} Qb6 {[%emt 0:00:14]} 5. Qc2 {[%emt 0:01:47]} d6 {[%emt 0:01:38]} 6. Bd3 {[%emt 0:00:59]} Nc6 {[%emt 0:01:11]} 7. f4 {[%emt 0:01:56]} Nf6 {[%emt 0:01:53]} 8. Bxf6 {[%emt 0:00:55]} Bxf6 {[%emt 0:00:31]} 9. Nf3 {[%emt 0:00:51]} cxd4 {[%emt 0:02:45]} 10. exd4 {[%emt 0:00:49]} Bg4 {[%emt 0:13:39]} 11. Nbd2 {[%emt 0:04:00]} Rc8 {[%emt 0:00:16]} 12. Qb3 {[%emt 0:01:06]} Qc7 {[%emt 0:06:39]} 13. O-O {[%emt 0:16:29]} O-O {[%emt 0:00:20]} 14. h3 {[%emt 0:02:26]} Be6 {[%emt 0:00:54]} 15. Qd1 {[%emt 0:02:36]} Qb6 {[%emt 0:00:24]} 16. Ne4 {[%emt 0:21:44]} Bg7 {[%emt 0:02:22]} 17. Qe2 {[%emt 0:01:49]} Bf5 {[%emt 0:02:37]} 18. Kh1 {[%emt 0:01:14]} Qc7 1/2-1/2